fUST/lending_fUST_20260226
["ID","MTS","AMOUNT","RATE_DAILY","PERIOD"]
[406685075,1772076641344,-238.0,0.00018015,2]
[406685076,1772076641354,-238.0,0.00018039,2]
[406685077,1772076641364,-238.0,0.00018073,2]
[406685078,1772076641528,-213.977555,0.00018073,2]
[406685079,1772076641538,-213.977555,0.00018073,2]
[406685080,1772076641548,-213.977555,0.00018073,2]
[406685081,1772076641557,-213.977555,0.00018073,2]
[406685082,1772076641566,-160.0,0.00018073,5]
[406685083,1772076641576,-275.32211574,0.00018082,2]
[406685084,1772076641586,-237.0,0.00018093,2]
[406685085,1772076641595,-237.0,0.00018166,2]
[406685086,1772076641605,-3027.49368103,0.00018167,28]
[406685087,1772076641614,-151.0,0.00018224,2]
[406685088,1772076641624,-1007.69,0.00018224,2]
[406685089,1772076641633,-1007.69,0.00018224,2]
[406685090,1772076641643,-1007.69,0.00018224,2]
[406685091,1772076641652,-1007.69,0.00018224,2]
[406685092,1772076641662,-1007.69,0.00018224,2]
[406685093,1772076641671,-1007.69,0.00018224,2]
[406685094,1772076641681,-1007.69,0.00018224,2]
[406685095,1772076641691,-1007.69,0.00018224,2]
[406685096,1772076641700,-1007.69,0.00018224,2]
[406685097,1772076641710,-1007.69,0.00018224,2]
[406685098,1772076641719,-1007.69,0.00018224,2]
[406685099,1772076641728,-1007.69,0.00018224,2]
[406685100,1772076641740,-1007.69,0.00018224,2]
[406685101,1772076641750,-1007.69,0.00018224,2]
[406685102,1772076641759,-1007.69,0.00018224,2]
[406685103,1772076641768,-1007.69,0.00018224,2]
[406685104,1772076641778,-1007.69,0.00018224,2]
[406685105,1772076641787,-1007.69,0.00018224,2]
[406685106,1772076641796,-1007.69,0.00018224,2]
[406685107,1772076641805,-1007.69,0.00018224,2]
[406685108,1772076641816,-1007.69,0.00018224,2]
[406685109,1772076641825,-1007.69,0.00018224,2]
[406685110,1772076641834,-1007.69,0.00018224,2]
[406685111,1772076641844,-1007.69,0.00018224,2]
[406685112,1772076641854,-1007.69,0.00018224,2]
[406685113,1772076641864,-1007.69,0.00018224,2]
[406685114,1772076641873,-1007.69,0.00018224,2]
[406685115,1772076641883,-1007.69,0.00018224,2]
[406685116,1772076641893,-1007.69,0.00018224,2]
[406685117,1772076641903,-1007.69,0.00018224,2]
[406685118,1772076641912,-1007.69,0.00018224,2]
[406685119,1772076641921,-1007.69,0.00018224,2]
[406685120,1772076641931,-1007.69,0.00018224,2]
[406685121,1772076641940,-1007.69,0.00018224,2]
[406685122,1772076641949,-1007.69,0.00018224,2]
[406685123,1772076641958,-1007.69,0.00018224,2]
[406685124,1772076641967,-1671.42,0.00018224,2]
[406685125,1772076641976,-237.0,0.00018231,2]
[406685126,1772076641986,-238.0,0.00018262,2]
[406685127,1772076641995,-237.0,0.00018302,2]
[406685128,1772076642005,-237.0,0.00018305,2]
[406685129,1772076642014,-237.0,0.00018324,2]
[406685130,1772076642023,-351.0,0.00018329,2]
[406685131,1772076642032,-351.0,0.00018329,2]
[406685132,1772076642042,-351.0,0.00018329,2]
[406685133,1772076642051,-351.0,0.00018329,2]
[406685134,1772076642061,-351.0,0.00018329,2]
[406685135,1772076642070,-351.0,0.00018329,2]
[406685136,1772076642080,-351.0,0.00018329,2]
[406685137,1772076642090,-351.0,0.00018329,2]
[406685138,1772076642099,-351.0,0.00018329,2]
[406685139,1772076642109,-351.0,0.00018329,2]
[406685140,1772076642119,-351.0,0.00018329,2]
[406685141,1772076642130,-457.62902472,0.00018329,2]
[406685142,1772076642141,-237.0,0.00018329,2]
[406685143,1772076642152,-237.0,0.00018348,2]
[406685144,1772076642162,-250.0,0.00018356,2]
[406685145,1772076642172,-160.0,0.00018364,6]
[406685146,1772076642183,-3092.96547559,0.00018367,2]
[406685147,1772076642194,-237.0,0.00018387,2]
[406685148,1772076642205,-403.0,0.000184,2]
[406685149,1772076642215,-237.0,0.00018422,2]
[406685150,1772076642225,-237.0,0.00018478,2]
[406685151,1772076642236,-165.0,0.000185,2]
[406685152,1772076642246,-165.0,0.000185,2]
[406685153,1772076642256,-157.53362091,0.000185,2]
[406685154,1772076642266,-3027.49368103,0.00018514,30]
[406685155,1772076642277,-237.0,0.00018552,2]
[406685156,1772076642290,-420.0,0.00018556,2]
[406685157,1772076642300,-237.0,0.00018572,2]
[406685158,1772076642311,-859.920172,0.00018601,2]
[406685159,1772076642321,-859.920172,0.00018601,2]
[406685160,1772076642332,-859.920172,0.00018601,2]
[406685161,1772076642344,-859.920172,0.00018601,2]
[406685162,1772076642355,-151.0,0.00018601,2]
[406685163,1772076642364,-151.0,0.00018601,2]
[406685164,1772076642375,-151.0,0.00018601,2]
[406685165,1772076642385,-213.977555,0.00018601,2]
[406685166,1772076642395,-213.977555,0.00018601,2]
[406685167,1772076642405,-213.977555,0.00018601,2]
[406685168,1772076642415,-213.977559,0.00018601,2]
[406685169,1772076642426,-237.0,0.00018609,2]
[406685170,1772076642436,-237.0,0.00018619,2]
[406685171,1772076642446,-237.0,0.00018631,2]
[406685172,1772076642455,-237.0,0.00018645,2]
[406685173,1772076642465,-160.0,0.00018654,7]
[406685174,1772076642475,-403.0,0.0001872,2]
[406685175,1772076642485,-165.3,0.000188,2]
[406685176,1772076642495,-158.13,0.000188,2]
[406685177,1772076642504,-1139.38391195,0.0001882,5]
[406685178,1772076642514,-911.60352755,0.0001882,5]
[406685179,1772076642523,-3027.49368103,0.00018861,32]
[406685180,1772076642533,-316.26,0.00018889,2]
[406685181,1772076642543,-516.63,0.00018893,7]
[406685182,1772076642553,-500.0,0.00018893,7]
[406685183,1772076642562,-407.78870906,0.00018904,2]
[406685184,1772076642572,-3207.40519818,0.00018915,2]
[406685185,1772076642583,-160.0,0.00018944,8]
[406685186,1772076642593,-204.21405605,0.00018989,2]
[406685187,1772076642602,-16130.0,0.00019,2]
[406685188,1772076642612,-938.8024,0.00019,2]
[406685189,1772076642621,-1003.758178,0.00019,2]
[406685190,1772076642631,-859.920172,0.00019178,2]
[406685191,1772076642641,-859.920172,0.00019178,2]
[406685192,1772076642651,-859.920172,0.00019178,2]
[406685193,1772076642661,-859.920172,0.00019178,2]
[406685194,1772076642671,-511.58,0.00019178,2]
[406685195,1772076642681,-2559.07,0.00019178,2]
[406685196,1772076642691,-200.0,0.00019178,2]
[406685197,1772076642701,-288.57,0.00019178,2]
[406685198,1772076642711,-156.096459,0.00019178,2]
[406685199,1772076642720,-1840.83,0.00019178,2]
[406685200,1772076642730,-1840.83,0.00019178,2]
[406685201,1772076642743,-1840.83,0.00019178,2]
[406685202,1772076642753,-1840.83,0.00019178,2]
[406685203,1772076642763,-1840.83,0.00019178,2]
[406685204,1772076642772,-1840.83,0.00019178,2]
[406685205,1772076642783,-1840.83,0.00019178,2]
[406685206,1772076642793,-1840.83,0.00019178,2]
[406685207,1772076642803,-1840.83,0.00019178,2]
[406685208,1772076642814,-1840.83,0.00019178,2]
[406685209,1772076642824,-1840.83,0.00019178,2]
[406685210,1772076642834,-1840.83,0.00019178,2]
[406685211,1772076642844,-1840.83,0.00019178,2]
[406685212,1772076642853,-1840.83,0.00019178,2]
[406685213,1772076642863,-1840.83,0.00019178,2]
[406685214,1772076642872,-1840.83,0.00019178,2]
[406685215,1772076642882,-1840.83,0.00019178,2]
[406685216,1772076642892,-1840.83,0.00019178,2]
[406685217,1772076642901,-1840.83,0.00019178,2]
[406685218,1772076642910,-1840.83,0.00019178,2]
[406685219,1772076642920,-1840.83,0.00019178,2]
[406685220,1772076642929,-1840.83,0.00019178,2]
[406685221,1772076642939,-1840.83,0.00019178,2]
[406685222,1772076642949,-1840.87710413,0.00019178,2]
[406685223,1772076642958,-151.0,0.00019178,2]
[406685224,1772076642968,-249.435962,0.00019178,2]
[406685225,1772076642977,-604.943652,0.00019178,2]
[406685226,1772076642986,-604.943652,0.00019178,2]
[406685227,1772076642997,-604.943652,0.00019178,2]
[406685228,1772076643006,-604.943652,0.00019178,2]
[406685229,1772076643015,-604.943652,0.00019178,2]
[406685230,1772076643025,-604.943652,0.00019178,2]
[406685231,1772076643034,-604.943652,0.00019178,2]
[406685232,1772076643044,-604.943652,0.00019178,2]
[406685233,1772076643053,-604.943652,0.00019178,2]
[406685235,1772076643062,-604.943652,0.00019178,2]
[406685237,1772076643072,-604.943652,0.00019178,2]
[406685239,1772076643082,-604.943652,0.00019178,2]
[406685241,1772076643091,-604.943652,0.00019178,2]
[406685243,1772076643100,-604.943652,0.00019178,2]
[406685244,1772076643110,-604.943652,0.00019178,2]
[406685245,1772076643121,-604.943652,0.00019178,2]
[406685246,1772076643130,-604.943652,0.00019178,2]
[406685247,1772076643139,-604.943652,0.00019178,2]
[406685248,1772076643148,-604.943652,0.00019178,2]
[406685249,1772076643158,-604.943643,0.00019178,2]
[406685250,1772076643173,-2124.36085,0.00019178,2]
[406685251,1772076643185,-2124.36085,0.00019178,2]
[406685252,1772076643195,-2124.36085,0.00019178,2]
[406685253,1772076643204,-2124.36085,0.00019178,2]
[406685254,1772076643213,-2124.36085,0.00019178,2]
[406685255,1772076643223,-2124.36085,0.00019178,2]
[406685256,1772076643232,-2124.36085,0.00019178,2]
[406685257,1772076643242,-2124.36085,0.00019178,2]
[406685258,1772076643252,-2124.36085,0.00019178,2]
[406685259,1772076643261,-2124.36085,0.00019178,2]
[406685260,1772076643271,-2124.36085,0.00019178,2]
[406685261,1772076643280,-2124.36085,0.00019178,2]
[406685262,1772076643292,-2124.36085,0.00019178,2]
[406685263,1772076643302,-2124.36085,0.00019178,2]
[406685264,1772076643312,-2124.36085,0.00019178,2]
[406685265,1772076643322,-2124.36085,0.00019178,2]
[406685266,1772076643331,-2124.36085,0.00019178,2]
[406685267,1772076643341,-2124.36085,0.00019178,2]
[406685268,1772076643350,-2124.36085,0.00019178,2]
[406685269,1772076643359,-2124.360856,0.00019178,2]
[406685270,1772076643369,-151.0,0.000192,2]
[406685271,1772076643379,-392.00897881,0.00019206,2]
[406685273,1772076643389,-151.0,0.00019207,2]
[406685274,1772076643398,-151.0,0.00019207,2]
[406685275,1772076643408,-165.860712,0.00019207,2]
[406685276,1772076643417,-3027.49368103,0.00019208,35]
[406685277,1772076643427,-160.0,0.00019234,9]
[406685278,1772076643437,-782.75422291,0.00019269,2]
[406685279,1772076643446,-158.11716613,0.00019282,2]
[406685280,1772076643456,-6274.16,0.00019313,2]
[406685281,1772076643465,-2181.0,0.00019336,2]
[406685282,1772076643475,-637.0,0.00019336,2]
[406685283,1772076643484,-1386.0,0.00019336,2]
[406685284,1772076643494,-728.0,0.00019336,2]
[406685285,1772076643504,-430.0,0.00019336,2]
[406685286,1772076643513,-544.16,0.00019336,2]
[406685287,1772076643522,-176.4316,0.00019339,14]
[406685288,1772076643532,-588.1053,0.00019339,30]
[406685289,1772076643541,-157.75483838,0.00019372,2]
[406685290,1772076643551,-4182.78,0.00019391,2]
[406685291,1772076643561,-151.0,0.000194,2]
[406685292,1772076643571,-500.0,0.000194,2]
[406685293,1772076643581,-500.0,0.000194,2]
[406685294,1772076643590,-500.0,0.000194,2]
[406685295,1772076643599,-500.0,0.000194,2]
[406685296,1772076643609,-500.0,0.000194,2]
[406685297,1772076643618,-500.0,0.000194,2]
[406685298,1772076643627,-500.0,0.000194,2]
[406685299,1772076643636,-500.0,0.000194,2]
[406685300,1772076643646,-500.0,0.000194,2]
[406685301,1772076643655,-500.0,0.000194,2]
[406685302,1772076643665,-500.0,0.000194,2]
[406685303,1772076643675,-500.0,0.000194,2]
[406685304,1772076643686,-500.0,0.000194,2]
[406685305,1772076643695,-500.0,0.000194,2]
[406685306,1772076643705,-500.0,0.000194,2]
[406685307,1772076643715,-500.0,0.000194,2]
[406685308,1772076643724,-500.0,0.000194,2]
[406685309,1772076643734,-500.0,0.000194,2]
[406685310,1772076643749,-500.0,0.000194,2]
[406685312,1772076643759,-500.0,0.000194,2]
[406685313,1772076643768,-577.68417893,0.000194,2]
[406685315,1772076643779,-786.0,0.000194,2]
[406685316,1772076643788,-3326.07919052,0.00019463,2]
[406685317,1772076643798,-1000.0,0.000195,2]
[406685318,1772076643807,-802.11028483,0.00019504,2]
[406685319,1772076643819,-1071.20312395,0.00019504,2]
[406685320,1772076643828,-88026.52009282,0.00019504,2]
[406685321,1772076643838,-18403.64994992,0.00019504,2]
[406685322,1772076643848,-1884.81706238,0.00019511,2]
[406685323,1772076643857,-1508.01311554,0.00019512,2]
[406685324,1772076643867,-820.81317,0.00019523,7]
[406685325,1772076643876,-160.0,0.00019525,10]
[406685326,1772076643885,-152.111,0.00019536,2]
[406685327,1772076643896,-151.059,0.00019536,2]
[406685328,1772076643905,-150.401,0.00019536,2]
[406685329,1772076643914,-160.521,0.00019536,2]
[406685330,1772076643923,-3027.49368103,0.00019555,37]
[406685331,1772076643933,-165.0,0.000196,2]
[406685332,1772076643942,-165.0,0.000196,3]
[406685333,1772076643952,-165.0,0.000196,3]
[406685334,1772076643962,-859.920172,0.00019642,2]
[406685335,1772076643971,-859.920172,0.00019642,2]
[406685336,1772076643980,-859.920172,0.00019642,2]
[406685337,1772076643990,-859.920172,0.00019642,2]
[406685338,1772076643999,-323067.80492866,0.00019701,2]
[406685339,1772076644010,-859.920172,0.00019701,2]
[406685340,1772076644019,-859.920172,0.00019701,2]
[406685341,1772076644029,-859.920172,0.00019701,2]
[406685342,1772076644039,-859.920178,0.00019701,2]
[406685343,1772076644048,-10028.0,0.00019719,7]
[406685344,1772076644058,-2585.94680177,0.00019757,2]
[406685345,1772076644067,-181.39728508,0.00019798,5]
[406685346,1772076644076,-3956.598221,0.000198,2]
[406685347,1772076644086,-160.0,0.00019815,11]
[406685348,1772076644095,-174.23450489,0.00019815,5]
[406685349,1772076644104,-173401.0920117,0.000199,2]
[406685351,1772076646560,-21.87514343,0.00015627,2]
[406685352,1772076648017,-174.16523792,0.00015627,2]
[406685353,1772076650087,-2239.07457887,0.0001547,2]
[406685354,1772076650130,-2499.97154474,0.0001547,2]
[406685355,1772076673403,-500.0,0.00013273,2]
[406685356,1772076673450,-2.70357729,0.00013699,2]
[406685357,1772076673469,-497.29642271,0.00013699,2]
[406685358,1772076673483,-2.70357729,0.00013699,2]
[406685359,1772076673519,-487.71512127,0.00013699,2]
[406685360,1772076673534,-12.28487873,0.00013699,2]
[406685361,1772076967443,6914.861173,0.00011965,2]
[406685363,1772077034504,3917.10273596,0.00012001,2]
[406685364,1772077048154,5000.0,0.00012001,2]
[406685365,1772077070558,5000.0,0.00012001,2]
[406685366,1772077080313,-1000.0,0.00012205,2]
[406685367,1772077082916,-1000.0,0.00012205,2]
[406685368,1772077083394,-1000.0,0.00012205,2]
[406685369,1772077083793,-1000.0,0.00012205,2]
[406685370,1772077084831,-1000.0,0.00012205,2]
[406685371,1772077084974,-300.0,0.00012328,2]
[406685372,1772077084996,-700.0,0.00012329,2]
[406685373,1772077085155,-200.24,0.00012329,2]
[406685374,1772077085176,-750.2,0.00012329,2]
[406685375,1772077085198,-49.56,0.00012329,2]
[406685376,1772077085304,-575.6,0.00012329,2]
[406685377,1772077085326,-424.4,0.00012329,2]
[406685378,1772077085474,-96.57,0.00012329,2]
[406685379,1772077085496,-434.14,0.00012329,2]
[406685380,1772077085517,-361.78,0.00012329,2]
[406685381,1772077085539,-107.51,0.00012329,2]
[406685382,1772077085926,-193.98,0.00012329,2]
[406685383,1772077085949,-251.24,0.00012329,2]
[406685384,1772077085971,-209.37,0.00012329,2]
[406685385,1772077085994,-174.47,0.00012329,2]
[406685386,1772077086020,-170.94,0.00012873,2]
[406685387,1772077086378,-1000.0,0.00012873,2]
[406685388,1772077086822,-29.06,0.00012873,2]
[406685389,1772077086844,-266.98520543,0.00012874,2]
[406685390,1772077086866,-703.95479457,0.00012874,2]
[406685391,1772077087260,-1000.0,0.00012874,2]
[406685392,1772077087566,-1000.0,0.00012874,2]
[406685393,1772077087899,-1000.0,0.00012874,2]
[406685394,1772077088313,-1000.0,0.00012874,2]
[406685395,1772077096439,-700.0,0.00012329,2]
[406685396,1772077170565,10000.0,0.00012001,2]
[406685398,1772077187700,10000.0,0.00012001,2]
[406685399,1772077211487,8320.8,0.00012001,2]
[406685400,1772077283950,5000.0,0.00012001,2]
[406685401,1772077292040,663.59969647,0.00012001,2]
[406685402,1772077307589,5000.0,0.00012001,2]
[406685403,1772077329822,5000.0,0.00012001,2]
[406685404,1772077353251,5000.0,0.00012001,2]
[406685405,1772077373767,5000.0,0.00012001,2]
[406685406,1772077396015,5000.0,0.00012001,2]
[406685407,1772077416401,10000.0,0.00011874,2]
[406685408,1772077418244,1287.65347205,0.00012001,2]
[406685409,1772077536878,250.0,0.00012001,2]
[406685410,1772077550148,-592.0,0.00012205,2]
[406685411,1772077550414,-271.53288328,0.00012267,2]
[406685412,1772077550459,-172.38,0.00012329,2]
[406685413,1772077550479,-18.87827126,0.00012872,2]
[406685414,1772077627091,-300.0,0.00012871,2]
[406685415,1772077627116,-500.0,0.00012872,2]
[406685416,1772077627139,-40.48598954,0.00012872,2]
[406685417,1772077634098,-247.73977879,0.00012872,2]
[406685418,1772077746131,-300.0,0.0001283,15]
[406685419,1772077746153,-300.0,0.00012871,2]
[406685420,1772077746174,-66.38863841,0.00012872,2]
[406685421,1772077746194,-500.0,0.00012872,2]
[406685422,1772077746218,-500.0,0.00012872,2]
[406685423,1772077746239,-500.0,0.00012872,2]
[406685424,1772077746261,-500.0,0.00012872,2]
[406685425,1772077746283,-500.0,0.00012872,2]
[406685426,1772077746304,-500.0,0.00012872,2]
[406685427,1772077746324,-425.44034281,0.00012872,2]
[406685428,1772077746345,-500.0,0.00012872,2]
[406685429,1772077746366,-500.0,0.00012872,2]
[406685430,1772077746388,-500.0,0.00012872,2]
[406685431,1772077746411,-500.0,0.00012872,2]
[406685432,1772077746434,-500.0,0.00012872,2]
[406685433,1772077746455,-500.0,0.00012872,2]
[406685434,1772077746477,-500.0,0.00012872,2]
[406685435,1772077746499,-500.0,0.00012872,2]
[406685436,1772077746520,-500.0,0.00012872,2]
[406685437,1772077746540,-500.0,0.00012872,2]
[406685438,1772077746562,-37.47179539,0.00012872,2]
[406685439,1772077748133,-462.52820461,0.00012872,2]
[406685440,1772077748157,-500.0,0.00012872,2]
[406685441,1772077748180,-500.0,0.00012872,2]
[406685442,1772077748205,-500.0,0.00012872,2]
[406685443,1772077748229,-500.0,0.00012872,2]
[406685444,1772077748252,-500.0,0.00012872,2]
[406685445,1772077748275,-500.0,0.00012872,2]
[406685446,1772077748299,-500.0,0.00012872,2]
[406685447,1772077748321,-500.0,0.00012872,2]
[406685448,1772077748342,-500.0,0.00012872,2]
[406685449,1772077748365,-500.0,0.00012872,2]
[406685450,1772077748386,-500.0,0.00012872,2]
[406685451,1772077748409,-228.53364843,0.00012872,2]
[406685452,1772077748431,-500.0,0.00012872,2]
[406685453,1772077748453,-500.0,0.00012872,2]
[406685454,1772077748476,-500.0,0.00012872,2]
[406685455,1772077748498,-250.0,0.00012872,2]
[406685456,1772077748523,-500.0,0.00012872,2]
[406685457,1772077748546,-500.0,0.00012872,2]
[406685458,1772077748568,-500.0,0.00012872,2]
[406685459,1772077748591,-500.0,0.00012872,2]
[406685460,1772077748614,-500.0,0.00012872,2]
[406685461,1772077748638,-500.0,0.00012872,2]
[406685462,1772077748661,-500.0,0.00012872,2]
[406685463,1772077748684,-500.0,0.00012872,2]
[406685464,1772077748706,-500.0,0.00012872,2]
[406685465,1772077748729,-500.0,0.00012872,2]
[406685466,1772077748924,-500.0,0.00012872,2]
[406685467,1772077748947,-500.0,0.00012872,2]
[406685468,1772077748970,-500.0,0.00012872,2]
[406685469,1772077748992,-500.0,0.00012872,2]
[406685470,1772077749013,-500.0,0.00012872,2]
[406685471,1772077749035,-500.0,0.00012872,2]
[406685472,1772077749056,-591.10976225,0.00012872,2]
[406685473,1772077749082,-500.0,0.00012872,2]
[406685474,1772077749106,-500.0,0.00012872,2]
[406685475,1772077749130,-500.0,0.00012872,2]
[406685476,1772077749152,-500.0,0.00012872,2]
[406685477,1772077749179,-500.0,0.00012872,2]
[406685478,1772077749201,-500.0,0.00012872,2]
[406685479,1772077749227,-500.0,0.00012872,2]
[406685480,1772077749253,-500.0,0.00012872,2]
[406685481,1772077749278,-500.0,0.00012872,2]
[406685482,1772077749303,-500.0,0.00012872,2]
[406685483,1772077749325,-500.0,0.00012872,2]
[406685484,1772077749345,-500.0,0.00012872,2]
[406685485,1772077749365,-500.0,0.00012872,2]
[406685486,1772077749389,-500.0,0.00012872,2]
[406685487,1772077749411,-500.0,0.00012872,2]
[406685488,1772077749433,-210.41206185,0.00012872,2]
[406685489,1772077749453,-500.0,0.00012872,2]
[406685490,1772077749472,-556.80283588,0.00012872,2]
[406685491,1772077749495,-500.0,0.00012872,2]
[406685492,1772077749517,-500.0,0.00012872,2]
[406685493,1772077749541,-500.0,0.00012872,2]
[406685494,1772077749564,-500.0,0.00012872,2]
[406685495,1772077749586,-500.0,0.00012872,2]
[406685496,1772077749619,-500.0,0.00012872,2]
[406685497,1772077749642,-500.0,0.00012872,2]
[406685498,1772077749666,-500.0,0.00012872,2]
[406685499,1772077749688,-500.0,0.00012872,2]
[406685500,1772077749710,-500.0,0.00012872,2]
[406685501,1772077749732,-500.0,0.00012872,2]
[406685502,1772077749754,-500.0,0.00012872,2]
[406685503,1772077749777,-500.0,0.00012872,2]
[406685504,1772077749798,-500.0,0.00012872,2]
[406685505,1772077749820,-500.0,0.00012872,2]
[406685506,1772077749841,-500.0,0.00012872,2]
[406685507,1772077749862,-500.0,0.00012872,2]
[406685508,1772077749884,-500.0,0.00012872,2]
[406685509,1772077749907,-500.0,0.00012872,2]
[406685510,1772077749929,-500.0,0.00012872,2]
[406685511,1772077749950,-500.0,0.00012872,2]
[406685512,1772077749972,-500.0,0.00012872,2]
[406685513,1772077749993,-500.0,0.00012872,2]
[406685514,1772077750014,-500.0,0.00012872,2]
[406685515,1772077750036,-500.0,0.00012872,2]
[406685516,1772077750059,-500.0,0.00012872,2]
[406685517,1772077750089,-224.80678403,0.00012872,2]
[406685518,1772077751247,-190.82441083,0.00012872,2]
[406685519,1772077751269,-500.0,0.00012872,2]
[406685520,1772077751291,-500.0,0.00012872,2]
[406685521,1772077751313,-500.0,0.00012872,2]
[406685522,1772077751335,-500.0,0.00012872,2]
[406685523,1772077751356,-500.0,0.00012872,2]
[406685524,1772077751378,-500.0,0.00012872,2]
[406685525,1772077751400,-500.0,0.00012872,2]
[406685526,1772077751421,-500.0,0.00012872,2]
[406685527,1772077751443,-500.0,0.00012872,2]
[406685528,1772077751464,-500.0,0.00012872,2]
[406685529,1772077751485,-500.0,0.00012872,2]
[406685530,1772077751506,-500.0,0.00012872,2]
[406685531,1772077751528,-500.0,0.00012872,2]
[406685532,1772077751549,-500.0,0.00012872,2]
[406685533,1772077751570,-500.0,0.00012872,2]
[406685534,1772077751591,-500.0,0.00012872,2]
[406685535,1772077751613,-306.29529305,0.00012872,2]
[406685536,1772077751634,-500.0,0.00012872,2]
[406685537,1772077751655,-500.0,0.00012872,2]
[406685538,1772077751676,-500.0,0.00012872,2]
[406685539,1772077751697,-500.0,0.00012872,2]
[406685540,1772077751719,-500.0,0.00012872,2]
[406685541,1772077751740,-500.0,0.00012872,2]
[406685542,1772077751761,-500.0,0.00012872,2]
[406685543,1772077751783,-500.0,0.00012872,2]
[406685544,1772077751807,-500.0,0.00012872,2]
[406685545,1772077751829,-1181.12172874,0.00012872,2]
[406685546,1772077751851,-500.0,0.00012872,2]
[406685547,1772077751872,-196.19235998,0.00012872,2]
[406685548,1772077751897,-261.22231653,0.00012872,2]
[406685549,1772077751918,-266.10222561,0.00012872,2]
[406685550,1772077751939,-5296.04520543,0.00012874,2]
[406685551,1772077751961,-500.0,0.00012876,2]
[406685552,1772077751982,-20000.0,0.00012877,3]
[406685553,1772077752006,-3114.15719317,0.000129,2]
[406685554,1772077752029,-482.82910667,0.00012929,2]
[406685555,1772077752049,-10000.0,0.00013135,2]
[406685556,1772077752071,-904.143225,0.00013145,2]
[406685557,1772077752096,-500.0,0.0001315,2]
[406685558,1772077752118,-217.36,0.000132,2]
[406685559,1772077752141,-319.82417139,0.00013214,2]
[406685560,1772077752163,-500.0,0.00013273,2]
[406685561,1772077752187,-500.0,0.00013273,2]
[406685562,1772077752210,-191.99761029,0.00013273,2]
[406685563,1772077752233,-500.0,0.00013273,2]
[406685564,1772077752254,-500.25545249,0.00013273,2]
[406685565,1772077752274,-418.03356827,0.00013273,2]
[406685566,1772077752294,-500.0,0.00013273,2]
[406685567,1772077752314,-500.0,0.00013273,2]
[406685568,1772077752334,-500.0,0.00013273,2]
[406685569,1772077752353,-500.0,0.00013273,2]
[406685570,1772077752372,-500.0,0.00013273,2]
[406685571,1772077752392,-500.0,0.00013273,2]
[406685572,1772077752411,-500.0,0.00013273,2]
[406685573,1772077752430,-500.0,0.00013273,2]
[406685574,1772077752449,-401.07702547,0.00013273,2]
[406685575,1772077752468,-500.0,0.00013273,2]
[406685576,1772077752488,-500.0,0.00013424,2]
[406685577,1772077752508,-189.34,0.000136,2]
[406685578,1772077752529,-500.0,0.00013698,2]
[406685579,1772077752549,-263.91976586,0.00013698,2]
[406685580,1772077752569,-500.0,0.00013698,2]
[406685581,1772077752588,-500.0,0.00013698,2]
[406685582,1772077752610,-500.0,0.00013698,2]
[406685583,1772077752631,-500.0,0.00013698,2]
[406685584,1772077752654,-500.0,0.00013698,2]
[406685585,1772077752675,-500.0,0.00013698,2]